[Event "35th Roquetas Festival 2024"]
[Site "Roquetas de Mar"]
[Date "2024.01.04"]
[Round "5.18"]
[White "Raczek, Krzysztof"]
[Black "Navarro Martinez, Victor"]
[Result "1-0"]
[ECO "A13"]
[WhiteElo "2347"]
[BlackElo "2124"]
[Annotator "RC"]
[PlyCount "63"]
[EventDate "2024.01.02"]
[EventType "swiss"]
[EventCountry "ESP"]
[SourceTitle "playchess.com"]
[Source "ChessBase"]
[SourceQuality "1"]
[TimeControl "5400+30"]

1. c4 {[%emt 0:00:04]} e6 {[%emt 0:01:31]} 2. Nc3 {[%emt 0:00:07]} d5 {[%emt 0:00:25]} 3. e3 {[%emt 0:00:06]} Nf6 {[%emt 0:02:08]} 4. Nf3 {[%emt 0:00:10]} Bd6 {[%emt 0:00:35]} 5. b3 {[%emt 0:02:14]} O-O {[%emt 0:00:39]} 6. Bb2 {[%emt 0:00:07]} c6 {[%emt 0:00:58]} 7. Rc1 {[%emt 0:04:09]} Re8 {[%emt 0:04:49]} 8. Qc2 {[%emt 0:00:39]} e5 {[%emt 0:04:38]} 9. cxd5 {[%emt 0:00:43]} cxd5 {[%emt 0:00:41]} 10. Nb5 {[%emt 0:01:37]} Nc6 {[%emt 0:02:37]} 11. Nxd6 {[%emt 0:12:48]} Qxd6 {[%emt 0:00:14]} 12. d4 {[%emt 0:00:12]} e4 {[%emt 0:09:27]} 13. Ne5 Bd7 {[%emt 0:01:32]} 14. Qd2 {[%emt 0:09:57]} Rac8 {[%emt 0:10:37]} 15. Be2 {[%emt 0:00:29]} Ne7 {[%emt 0:12:25]} 16. O-O {[%emt 0:01:27]} a6 {[%emt 0:01:24]} 17. Qa5 {[%emt 0:04:15]} Qe6 {[%emt 0:06:56]} 18. Qb4 {[%emt 0:03:53]} b5 19. Qa5 {[%emt 0:09:44]} Nc6 {[%emt 0:13:32]} 20. Nxc6 {[%emt 0:00:40]} Rxc6 {[%emt 0:00:23]} 21. Rc5 {[%emt 0:04:23]} Rxc5 {[%emt 0:04:43]} 22. dxc5 {[%emt 0:00:06]} Qc6 {[%emt 0:01:26]} 23. Rc1 {[%emt 0:01:16]} Bg4 {[%emt 0:00:34]} 24. Bf1 {[%emt 0:02:56]} Nd7 {[%emt 0:00:25]} 25. a4 {[%emt 0:01:02]} Rb8 {[%emt 0:01:25]} 26. axb5 {[%emt 0:00:13]} axb5 {[%emt 0:00:01]} 27. Bd4 {[%emt 0:00:16]} Be6 {[%emt 0:04:37]} 28. Ra1 {[%emt 0:01:05]} h6 {[%emt 0:00:30]} 29. Qa7 {[%emt 0:03:37]} Kh7 {[%emt 0:00:30]} 30. b4 {[%emt 0:01:12]} Kg8 {[%emt 0:00:42]} 31. Ra6 {[%emt 0:05:22]} Qc8 {[%emt 0:01:04]} 32. c6 {[%emt 0:00:12]} 1-0

[Event "35th Roquetas Festival 2024"]
[Site "Roquetas de Mar"]
[Date "2024.01.04"]
[Round "5.19"]
[White "Alba Fernandez, Nicolas"]
[Black "Garrido Diaz, Jose Antonio"]
[Result "1/2-1/2"]
[ECO "E35"]
[WhiteElo "2123"]
[BlackElo "2291"]
[Annotator "RC"]
[PlyCount "119"]
[EventDate "2024.01.02"]
[EventType "swiss"]
[EventCountry "ESP"]
[SourceTitle "playchess.com"]
[Source "ChessBase"]
[SourceQuality "1"]
[TimeControl "5400+30"]

1. d4 {[%emt 0:00:01]} Nf6 {[%emt 0:00:07]} 2. c4 {[%emt 0:00:07]} e6 {[%emt 0:00:04]} 3. Nc3 {[%emt 0:00:08]} Bb4 {[%emt 0:00:05]} 4. Qc2 {[%emt 0:01:08]} d5 {[%emt 0:00:15]} 5. cxd5 {[%emt 0:00:08]} exd5 {[%emt 0:00:04]} 6. Bg5 {[%emt 0:00:53]} h6 {[%emt 0:00:09]} 7. Bh4 {[%emt 0:00:06]} Nc6 {[%emt 0:00:40]} 8. e3 {[%emt 0:03:18]} g5 {[%emt 0:00:13]} 9. Bg3 {[%emt 0:00:08]} h5 {[%emt 0:00:09]} 10. Bb5 {[%emt 0:11:37]} h4 {[%emt 0:03:51]} 11. Be5 {[%emt 0:01:04]} O-O {[%emt 0:00:20]} 12. Nf3 {[%emt 0:19:52]} Ne4 {[%emt 0:07:32]} 13. h3 {[%emt 0:05:48]} Qe7 {[%emt 0:22:18]} 14. Bd3 {[%emt 0:04:32]} f6 {[%emt 0:07:47]} 15. Bh2 {[%emt 0:00:57]} f5 {[%emt 0:16:04]} 16. Ne5 {[%emt 0:05:26]} Nxe5 17. Bxe5 {[%emt 0:00:47]} c6 {[%emt 0:03:12]} 18. a3 {[%emt 0:09:01]} Bd6 {[%emt 0:01:05]} 19. Bxd6 {[%emt 0:04:36]} Nxd6 {[%emt 0:00:18]} 20. O-O-O {[%emt 0:01:02]} Be6 {[%emt 0:07:03]} 21. f3 {[%emt 0:01:29]} Qf6 {[%emt 0:02:17]} 22. Kb1 {[%emt 0:01:31]} Rac8 {[%emt 0:02:50]} 23. e4 {[%emt 0:00:35]} fxe4 {[%emt 0:01:45]} 24. fxe4 {[%emt 0:00:05]} dxe4 {[%emt 0:02:03]} 25. Nxe4 {[%emt 0:02:29]} Nxe4 {[%emt 0:00:21]} 26. Bxe4 {[%emt 0:00:05]} Rcd8 {[%emt 0:01:46]} 27. Qc5 {[%emt 0:02:31]} Bf5 28. Rhe1 {[%emt 0:00:07]} Rd5 {[%emt 0:09:40]} 29. Qc2 {[%emt 0:01:30]} Rfd8 {[%emt 0:01:46]} 30. Rf1 {[%emt 0:01:37]} Bxe4 {[%emt 0:01:40]} 31. Qxe4 {[%emt 0:00:53]} Qd6 32. Rf5 {[%emt 0:02:25]} Rxf5 {[%emt 0:03:11]} 33. Qxf5 {[%emt 0:00:58]} Kg7 {[%emt 0:00:07]} 34. Qxg5+ {[%emt 0:08:49]} Qg6+ {[%emt 0:00:01]} 35. Qxg6+ {[%emt 0:00:08]} Kxg6 {[%emt 0:00:02]} 36. Kc2 {[%emt 0:00:06]} Kf5 {[%emt 0:02:18]} 37. Kc3 {[%emt 0:00:55]} Kf4 {[%emt 0:00:20]} 38. Rd3 {[%emt 0:00:30]} Rg8 {[%emt 0:00:41]} 39. Rf3+ {[%emt 0:00:06]} Ke4 {[%emt 0:00:06]} 40. Rf2 {[%emt 0:00:18]} Rg3+ {[%emt 0:02:33]} 41. Kc4 {[%emt 0:00:06]} Rd3 {[%emt 0:00:38]} 42. Re2+ {[%emt 0:01:17]} Re3 {[%emt 0:00:04]} 43. Rf2 {[%emt 0:01:39]} Re1 {[%emt 0:00:02]} 44. Rf7 {[%emt 0:02:49]} Rc1+ {[%emt 0:02:46]} 45. Kb3 {[%emt 0:00:26]} Rg1 {[%emt 0:00:08]} 46. Rh7 {[%emt 0:01:31]} Rxg2 {[%emt 0:00:32]} 47. Rxh4+ {[%emt 0:00:03]} Kd5 {[%emt 0:00:05]} 48. Rh7 {[%emt 0:03:23]} b6 {[%emt 0:00:14]} 49. Rd7+ {[%emt 0:01:20]} Ke4 {[%emt 0:00:27]} 50. Rxa7 {[%emt 0:00:05]} Kxd4 {[%emt 0:00:11]} 51. Rh7 {[%emt 0:00:03]} b5 {[%emt 0:01:06]} 52. Rd7+ {[%emt 0:03:39]} Kc5 {[%emt 0:00:22]} 53. Rd3 {[%emt 0:00:29]} Rh2 {[%emt 0:00:04]} 54. Kc3 {[%emt 0:00:08]} b4+ {[%emt 0:02:52]} 55. axb4+ {[%emt 0:00:04]} Kb5 {[%emt 0:00:02]} 56. b3 {[%emt 0:00:09]} Rh1 {[%emt 0:00:21]} 57. Kd4 {[%emt 0:01:12]} Kxb4 {[%emt 0:00:17]} 58. Ke4 {[%emt 0:00:38]} c5 {[%emt 0:03:31]} 59. Kf5 {[%emt 0:00:56]} Rb1 {[%emt 0:00:41]} 60. Ke4 1/2-1/2

[Event "35th Roquetas Festival 2024"]
[Site "Roquetas de Mar"]
[Date "2024.01.04"]
[Round "5.20"]
[White "Bru Rullo, Llatzer"]
[Black "Torres Rebolledo, Victor"]
[Result "1-0"]
[ECO "D35"]
[WhiteElo "2278"]
[BlackElo "2124"]
[Annotator "RC"]
[PlyCount "83"]
[EventDate "2024.01.02"]
[EventType "swiss"]
[EventCountry "ESP"]
[SourceTitle "playchess.com"]
[Source "ChessBase"]
[SourceQuality "1"]
[TimeControl "5400+30"]

1. d4 {[%emt 0:00:02]} Nf6 {[%emt 0:00:28]} 2. c4 {[%emt 0:00:05]} e6 {[%emt 0:00:41]} 3. Nc3 {[%emt 0:00:13]} d5 {[%emt 0:00:11]} 4. cxd5 {[%emt 0:00:24]} exd5 {[%emt 0:00:03]} 5. Bg5 {[%emt 0:00:09]} Bb4 {[%emt 0:00:07]} 6. e3 {[%emt 0:00:50]} h6 {[%emt 0:00:06]} 7. Bh4 {[%emt 0:00:12]} g5 {[%emt 0:00:08]} 8. Bg3 Ne4 {[%emt 0:00:12]} 9. Nge2 {[%emt 0:01:12]} h5 {[%emt 0:00:11]} 10. h4 {[%emt 0:00:55]} Bg4 {[%emt 0:00:31]} 11. Qb3 {[%emt 0:23:11]} Nc6 {[%emt 0:00:24]} 12. Bh2 {[%emt 0:12:29]} Qf6 {[%emt 0:03:04]} 13. Bg1 {[%emt 0:00:57]} Bxe2 {[%emt 0:23:06]} 14. Bxe2 {[%emt 0:03:40]} O-O-O {[%emt 0:00:22]} 15. a3 {[%emt 0:08:33]} Ba5 {[%emt 0:03:49]} 16. Bf3 {[%emt 0:05:03]} Nxd4 17. exd4 {[%emt 0:00:14]} Qxd4 {[%emt 0:33:46]} 18. Rd1 {[%emt 0:06:30]} Qc5 {[%emt 0:01:17]} 19. Bxe4 {[%emt 0:02:31]} dxe4 {[%emt 0:00:16]} 20. Rh3 {[%emt 0:06:15]} g4 {[%emt 0:07:53]} 21. Re3 {[%emt 0:00:40]} Rxd1+ {[%emt 0:08:59]} 22. Qxd1 Rd8 {[%emt 0:00:46]} 23. Qc2 {[%emt 0:01:04]} Bxc3+ {[%emt 0:01:10]} 24. Rxc3 {[%emt 0:05:04]} Qd6 {[%emt 0:00:04]} 25. Re3 {[%emt 0:01:01]} f5 {[%emt 0:00:41]} 26. Re2 {[%emt 0:01:29]} Qe5 {[%emt 0:04:49]} 27. Rd2 {[%emt 0:01:37]} Re8 {[%emt 0:00:57]} 28. Qa4 {[%emt 0:02:36]} Rd8 {[%emt 0:04:20]} 29. Rxd8+ {[%emt 0:00:26]} Kxd8 {[%emt 0:00:01]} 30. Qb3 {[%emt 0:01:35]} Qf4 {[%emt 0:06:11]} 31. Kd1 {[%emt 0:02:23]} Qd6+ {[%emt 0:00:07]} 32. Ke2 {[%emt 0:00:50]} b6 {[%emt 0:00:49]} 33. Qd1 {[%emt 0:00:19]} Ke7 {[%emt 0:00:50]} 34. Qxd6+ {[%emt 0:00:50]} Kxd6 35. Bh2+ {[%emt 0:00:22]} Kd7 {[%emt 0:00:20]} 36. Ke3 {[%emt 0:00:14]} c5 {[%emt 0:00:00]} 37. Kf4 {[%emt 0:01:20]} Ke6 {[%emt 0:00:01]} 38. Kg5 {[%emt 0:00:48]} c4 {[%emt 0:00:10]} 39. Kxh5 {[%emt 0:00:54]} Kf6 {[%emt 0:00:05]} 40. Bb8 {[%emt 0:01:00]} a6 {[%emt 0:00:44]} 41. g3 {[%emt 0:00:25]} b5 {[%emt 0:00:06]} 42. Bc7 {[%emt 0:00:23]} 1-0

[Event "35th Roquetas Festival 2024"]
[Site "Roquetas de Mar"]
[Date "2024.01.04"]
[Round "5.21"]
[White "Fiorito, Fabian"]
[Black "Fernandez, Maria Florencia"]
[Result "1/2-1/2"]
[ECO "A15"]
[WhiteElo "2274"]
[BlackElo "2074"]
[Annotator "RC"]
[PlyCount "110"]
[EventDate "2024.01.02"]
[EventType "swiss"]
[EventCountry "ESP"]
[SourceTitle "playchess.com"]
[Source "ChessBase"]
[SourceQuality "1"]
[TimeControl "5400+30"]

1. c4 {[%emt 0:00:27]} Nf6 {[%emt 0:01:35]} 2. Nf3 {[%emt 0:01:24]} g6 {[%emt 0:00:56]} 3. g3 {[%emt 0:00:42]} Bg7 {[%emt 0:00:13]} 4. Bg2 {[%emt 0:00:07]} O-O {[%emt 0:00:11]} 5. O-O {[%emt 0:00:05]} d6 {[%emt 0:00:10]} 6. Nc3 {[%emt 0:00:19]} e5 {[%emt 0:00:56]} 7. d3 {[%emt 0:01:11]} Nc6 {[%emt 0:03:45]} 8. Rb1 {[%emt 0:00:28]} h6 {[%emt 0:02:22]} 9. b4 {[%emt 0:00:28]} Ne8 {[%emt 0:02:07]} 10. b5 {[%emt 0:02:17]} Ne7 {[%emt 0:00:12]} 11. a4 {[%emt 0:00:47]} f5 {[%emt 0:00:34]} 12. Nd2 {[%emt 0:00:44]} g5 {[%emt 0:12:47]} 13. a5 Rb8 {[%emt 0:02:28]} 14. Nd5 {[%emt 0:05:58]} Nf6 {[%emt 0:07:15]} 15. Qc2 {[%emt 0:04:30]} Be6 {[%emt 0:06:55]} 16. Nxf6+ {[%emt 0:03:12]} Bxf6 {[%emt 0:03:15]} 17. Bb2 {[%emt 0:00:31]} c5 {[%emt 0:09:42]} 18. bxc6 {[%emt 0:04:06]} bxc6 {[%emt 0:06:13]} 19. Bc3 {[%emt 0:04:31]} Qc7 {[%emt 0:00:18]} 20. Qa4 {[%emt 0:01:26]} d5 {[%emt 0:15:24]} 21. cxd5 {[%emt 0:01:37]} Rxb1 {[%emt 0:02:46]} 22. Rxb1 {[%emt 0:01:36]} cxd5 {[%emt 0:00:03]} 23. Qa3 {[%emt 0:03:30]} Rc8 {[%emt 0:01:30]} 24. Bb4 {[%emt 0:03:10]} Kf7 {[%emt 0:00:56]} 25. a6 {[%emt 0:02:55]} Qc2 {[%emt 0:03:18]} 26. Bf1 {[%emt 0:04:30]} f4 {[%emt 0:02:03]} 27. Bxe7 {[%emt 0:02:03]} Bxe7 {[%emt 0:00:25]} 28. Rb7 {[%emt 0:00:04]} Rc7 {[%emt 0:01:28]} 29. Qa5 {[%emt 0:01:19]} Bd8 {[%emt 0:10:12]} 30. Nc4 {[%emt 0:08:48]} dxc4 {[%emt 0:00:04]} 31. Rxc7+ {[%emt 0:00:08]} Bxc7 {[%emt 0:00:05]} 32. Qxc7+ {[%emt 0:00:04]} Kf6 {[%emt 0:00:09]} 33. dxc4 {[%emt 0:03:49]} Qc1 {[%emt 0:03:46]} 34. Qh7 {[%emt 0:04:39]} Bxc4 {[%emt 0:01:42]} 35. Qxh6+ {[%emt 0:00:31]} Kf7 {[%emt 0:00:11]} 36. Qh7+ {[%emt 0:01:53]} Kf6 {[%emt 0:01:01]} 37. Qh8+ {[%emt 0:01:35]} Ke6 {[%emt 0:01:16]} 38. Qc8+ {[%emt 0:03:36]} Kd6 {[%emt 0:00:43]} 39. gxf4 {[%emt 0:05:46]} gxf4 {[%emt 0:00:20]} 40. h4 {[%emt 0:01:26]} e4 {[%emt 0:00:43]} 41. Qf8+ {[%emt 0:02:07]} Ke5 {[%emt 0:00:21]} 42. Qc5+ {[%emt 0:00:41]} Ke6 {[%emt 0:00:26]} 43. Qd4 {[%emt 0:05:53]} Kf5 {[%emt 0:00:29]} 44. Qd7+ {[%emt 0:04:38]} Ke5 {[%emt 0:00:10]} 45. Qg7+ {[%emt 0:00:16]} Ke6 {[%emt 0:00:56]} 46. Qg2 {[%emt 0:09:01]} Ke5 {[%emt 0:00:09]} 47. Qg5+ {[%emt 0:02:34]} Ke6 {[%emt 0:00:06]} 48. Qg2 {[%emt 0:00:58]} Ke5 {[%emt 0:00:03]} 49. Qg7+ {[%emt 0:00:31]} Ke6 {[%emt 0:00:19]} 50. Qg2 {[%emt 0:01:03]} Ke5 51. f3 {[%emt 0:00:30]} Qe3+ {[%emt 0:03:02]} 52. Kh2 {[%emt 0:00:30]} Qc1 {[%emt 0:00:30]} 53. Qg4 Bxa6 54. Qg5+ Kd6 55. Qe5+ {[%emt 0:01:30]} Kxe5 {[%emt 0:01:30]} 1/2-1/2

[Event "35th Roquetas Festival 2024"]
[Site "Roquetas de Mar"]
[Date "2024.01.04"]
[Round "5.22"]
[White "Serrano Almendros, Angel"]
[Black "Ferro Martinez, Damian"]
[Result "1-0"]
[ECO "B10"]
[WhiteElo "2250"]
[BlackElo "1858"]
[Annotator "RC"]
[PlyCount "85"]
[EventDate "2024.01.02"]
[EventType "swiss"]
[EventCountry "ESP"]
[SourceTitle "playchess.com"]
[Source "ChessBase"]
[SourceQuality "1"]
[TimeControl "5400+30"]

1. e4 {[%emt 0:00:04]} c6 {[%emt 0:15:26]} 2. Nf3 {[%emt 0:00:04]} d5 {[%emt 0:00:05]} 3. d3 {[%emt 0:00:03]} dxe4 {[%emt 0:00:04]} 4. dxe4 {[%emt 0:00:05]} Qxd1+ {[%emt 0:00:05]} 5. Kxd1 {[%emt 0:00:03]} Nf6 {[%emt 0:00:05]} 6. Nbd2 {[%emt 0:00:06]} g6 {[%emt 0:01:03]} 7. Ne5 {[%emt 0:00:04]} Bh6 {[%emt 0:01:20]} 8. f3 {[%emt 0:00:40]} Nbd7 {[%emt 0:00:39]} 9. Nd3 {[%emt 0:00:25]} Nb6 {[%emt 0:01:47]} 10. a4 {[%emt 0:01:54]} a5 {[%emt 0:02:23]} 11. Nc4 {[%emt 0:00:45]} Nxc4 {[%emt 0:02:05]} 12. Bxh6 {[%emt 0:01:05]} Rg8 {[%emt 0:04:56]} 13. b3 {[%emt 0:04:58]} Nb6 {[%emt 0:01:30]} 14. Be3 {[%emt 0:03:54]} Nbd7 {[%emt 0:00:16]} 15. c4 {[%emt 0:06:18]} e5 {[%emt 0:04:30]} 16. Kc2 {[%emt 0:02:07]} Nh5 {[%emt 0:02:17]} 17. g3 {[%emt 0:08:35]} Ng7 {[%emt 0:01:44]} 18. Bh3 {[%emt 0:02:57]} f6 {[%emt 0:03:02]} 19. Rhd1 {[%emt 0:01:17]} Nf8 {[%emt 0:10:08]} 20. Bxc8 {[%emt 0:04:17]} Rxc8 {[%emt 0:00:18]} 21. Nc5 {[%emt 0:01:45]} b6 {[%emt 0:16:59]} 22. Nb7 {[%emt 0:02:33]} Rb8 {[%emt 0:01:23]} 23. Nd6+ {[%emt 0:00:06]} Kd7 {[%emt 0:03:20]} 24. c5 {[%emt 0:01:17]} bxc5 {[%emt 0:03:12]} 25. Nc4+ {[%emt 0:00:42]} Kc7 {[%emt 0:01:31]} 26. Bxc5 {[%emt 0:00:25]} Ra8 {[%emt 0:00:45]} 27. Bb6+ {[%emt 0:04:50]} Kb7 {[%emt 0:00:16]} 28. Bxa5 {[%emt 0:00:45]} Nge6 {[%emt 0:00:10]} 29. Bc3 {[%emt 0:00:34]} Rg7 {[%emt 0:00:50]} 30. Rd6 {[%emt 0:00:23]} Rd7 {[%emt 0:00:58]} 31. Na5+ {[%emt 0:01:45]} Kc7 {[%emt 0:04:19]} 32. Rxc6+ {[%emt 0:00:11]} Kd8 {[%emt 0:00:05]} 33. Nc4 {[%emt 0:00:51]} Nd4+ {[%emt 0:02:45]} 34. Bxd4 {[%emt 0:00:06]} Rxd4 {[%emt 0:00:06]} 35. Rd1 {[%emt 0:00:42]} Rxd1 {[%emt 0:01:19]} 36. Kxd1 {[%emt 0:00:09]} Ke7 {[%emt 0:00:14]} 37. Nb6 {[%emt 0:01:14]} Rd8+ {[%emt 0:00:34]} 38. Nd5+ {[%emt 0:00:07]} Kd7 {[%emt 0:02:32]} 39. Rb6 {[%emt 0:01:37]} Ne6 {[%emt 0:00:14]} 40. a5 {[%emt 0:00:18]} Nd4 {[%emt 0:01:55]} 41. a6 {[%emt 0:00:19]} Ra8 {[%emt 0:00:35]} 42. Rxf6 {[%emt 0:00:23]} Nc6 {[%emt 0:02:20]} 43. Nb6+ {[%emt 0:00:09]} 1-0

[Event "35th Roquetas Festival 2024"]
[Site "Roquetas de Mar"]
[Date "2024.01.04"]
[Round "5.23"]
[White "Cabezas Ayala, Ivan"]
[Black "Castillo Rodriguez, Angel Luis"]
[Result "1/2-1/2"]
[ECO "C11"]
[WhiteElo "2244"]
[BlackElo "2055"]
[Annotator "RC"]
[PlyCount "80"]
[EventDate "2024.01.02"]
[EventType "swiss"]
[EventCountry "ESP"]
[SourceTitle "playchess.com"]
[Source "ChessBase"]
[SourceQuality "1"]
[TimeControl "5400+30"]

1. e4 {[%emt 0:00:31]} e6 {[%emt 0:00:07]} 2. d4 {[%emt 0:00:08]} d5 {[%emt 0:00:04]} 3. Nc3 {[%emt 0:00:10]} Nf6 {[%emt 0:00:08]} 4. e5 {[%emt 0:00:10]} Nfd7 {[%emt 0:00:05]} 5. f4 {[%emt 0:00:07]} c5 {[%emt 0:00:05]} 6. Nf3 {[%emt 0:00:07]} Nc6 {[%emt 0:00:06]} 7. Be3 {[%emt 0:00:19]} Be7 {[%emt 0:00:10]} 8. Qd2 {[%emt 0:11:13]} O-O {[%emt 0:00:29]} 9. dxc5 {[%emt 0:01:01]} Qa5 {[%emt 0:00:20]} 10. Bd3 {[%emt 0:01:27]} Nxc5 {[%emt 0:07:37]} 11. O-O {[%emt 0:00:42]} Nxd3 {[%emt 0:01:04]} 12. cxd3 {[%emt 0:00:14]} Bd7 {[%emt 0:08:50]} 13. Ne2 {[%emt 0:02:19]} Qa6 {[%emt 0:07:01]} 14. Ned4 {[%emt 0:00:53]} Rac8 {[%emt 0:01:58]} 15. a3 {[%emt 0:01:44]} Rc7 {[%emt 0:02:35]} 16. Rad1 {[%emt 0:19:09]} Rfc8 {[%emt 0:05:39]} 17. Qf2 {[%emt 0:02:18]} Qa4 {[%emt 0:11:33]} 18. h3 {[%emt 0:05:41]} Rf8 {[%emt 0:17:39]} 19. Rc1 {[%emt 0:14:45]} Rfc8 {[%emt 0:06:36]} 20. Kh1 {[%emt 0:01:27]} Qa6 {[%emt 0:00:48]} 21. Rfd1 {[%emt 0:07:01]} b6 {[%emt 0:04:15]} 22. Nxc6 {[%emt 0:05:08]} Bxc6 {[%emt 0:01:50]} 23. Bd4 {[%emt 0:02:48]} Ba4 {[%emt 0:02:55]} 24. Rxc7 {[%emt 0:00:17]} Rxc7 {[%emt 0:00:19]} 25. Rd2 {[%emt 0:00:22]} Qc8 {[%emt 0:01:41]} 26. Kh2 {[%emt 0:03:04]} Rc2 {[%emt 0:02:40]} 27. Kg3 {[%emt 0:03:10]} Kf8 {[%emt 0:00:42]} 28. Rxc2 {[%emt 0:00:29]} Qxc2 29. Qxc2 {[%emt 0:00:06]} Bxc2 {[%emt 0:00:16]} 30. Ne1 {[%emt 0:00:10]} Bd1 {[%emt 0:01:26]} 31. Kf2 {[%emt 0:00:54]} h5 {[%emt 0:00:12]} 32. g3 {[%emt 0:02:17]} Ke8 {[%emt 0:07:03]} 33. Ke3 {[%emt 0:01:36]} Kd7 {[%emt 0:00:16]} 34. Kd2 {[%emt 0:00:51]} Ba4 {[%emt 0:00:09]} 35. Ng2 {[%emt 0:01:31]} g6 {[%emt 0:01:49]} 36. Ne3 {[%emt 0:01:03]} Bd8 {[%emt 0:02:07]} 37. Kc3 {[%emt 0:00:47]} Bb5 {[%emt 0:02:17]} 38. Nd1 {[%emt 0:01:58]} Be7 {[%emt 0:00:16]} 39. b4 {[%emt 0:01:03]} Kc7 {[%emt 0:00:36]} 40. Nb2 {[%emt 0:01:32]} a5 {[%emt 0:00:18]} 1/2-1/2

[Event "35th Roquetas Festival 2024"]
[Site "Roquetas de Mar"]
[Date "2024.01.04"]
[Round "5.24"]
[White "Castro Quijano, Eduardo"]
[Black "Rodriguez Lopez, Rafael"]
[Result "1/2-1/2"]
[ECO "D77"]
[WhiteElo "2103"]
[BlackElo "2152"]
[Annotator "RC"]
[PlyCount "69"]
[EventDate "2024.01.02"]
[EventType "swiss"]
[EventCountry "ESP"]
[SourceTitle "playchess.com"]
[Source "ChessBase"]
[SourceQuality "1"]
[TimeControl "5400+30"]

1. c4 {[%emt 0:03:28]} Nf6 {[%emt 0:00:41]} 2. d4 {[%emt 0:00:06]} g6 {[%emt 0:00:12]} 3. Nf3 {[%emt 0:00:52]} Bg7 {[%emt 0:00:06]} 4. g3 {[%emt 0:00:07]} O-O {[%emt 0:00:43]} 5. Bg2 {[%emt 0:00:04]} d5 {[%emt 0:00:04]} 6. O-O {[%emt 0:00:34]} dxc4 {[%emt 0:00:18]} 7. Na3 {[%emt 0:02:37]} c3 {[%emt 0:00:23]} 8. bxc3 {[%emt 0:00:06]} c5 {[%emt 0:00:05]} 9. Re1 {[%emt 0:11:57]} Nc6 {[%emt 0:00:36]} 10. e4 {[%emt 0:02:10]} Bg4 {[%emt 0:01:39]} 11. Bb2 {[%emt 0:00:21]} Qc8 {[%emt 0:05:32]} 12. e5 {[%emt 0:01:17]} Nd7 {[%emt 0:04:09]} 13. h3 {[%emt 0:00:48]} Bxf3 {[%emt 0:00:17]} 14. Bxf3 {[%emt 0:00:35]} Rd8 {[%emt 0:02:28]} 15. Qb3 {[%emt 0:02:13]} e6 {[%emt 0:03:26]} 16. Nc4 {[%emt 0:04:54]} Rb8 {[%emt 0:01:12]} 17. Rad1 {[%emt 0:05:49]} Qc7 {[%emt 0:00:38]} 18. Bc1 {[%emt 0:01:58]} Na5 19. Nxa5 {[%emt 0:00:25]} Qxa5 {[%emt 0:01:48]} 20. Bg5 {[%emt 0:01:29]} Rdc8 {[%emt 0:01:17]} 21. Be7 {[%emt 0:00:59]} cxd4 {[%emt 0:00:55]} 22. Bb4 {[%emt 0:02:31]} Qb6 {[%emt 0:01:46]} 23. Bd6 {[%emt 0:01:41]} Qxb3 {[%emt 0:10:34]} 24. axb3 {[%emt 0:00:06]} Rxc3 {[%emt 0:00:12]} 25. Bxb8 {[%emt 0:00:20]} Nxb8 {[%emt 0:00:04]} 26. Rxd4 {[%emt 0:01:32]} Rxf3 {[%emt 0:00:26]} 27. Rd8+ {[%emt 0:00:10]} Bf8 {[%emt 0:00:04]} 28. Rxb8 {[%emt 0:00:21]} Rxb3 {[%emt 0:00:08]} 29. Ra1 {[%emt 0:00:31]} Kg7 {[%emt 0:00:23]} 30. Rxa7 {[%emt 0:00:36]} Rxg3+ {[%emt 0:00:16]} 31. fxg3 {[%emt 0:00:06]} Bc5+ {[%emt 0:00:05]} 32. Kg2 {[%emt 0:00:07]} Bxa7 {[%emt 0:00:04]} 33. Rxb7 {[%emt 0:00:05]} Bd4 {[%emt 0:00:15]} 34. Rb5 {[%emt 0:00:05]} h5 {[%emt 0:00:40]} 35. Kf3 {[%emt 0:00:13]} 1/2-1/2

[Event "35th Roquetas Festival 2024"]
[Site "Roquetas de Mar"]
[Date "2024.01.04"]
[Round "5.25"]
[White "Diaz Mino, Daniel"]
[Black "Gomez Sanjuan, Hector Fernando"]
[Result "0-1"]
[ECO "C02"]
[WhiteElo "2074"]
[BlackElo "2139"]
[Annotator "RC"]
[PlyCount "108"]
[EventDate "2024.01.02"]
[EventType "swiss"]
[EventCountry "ESP"]
[SourceTitle "playchess.com"]
[Source "ChessBase"]
[SourceQuality "1"]
[TimeControl "5400+30"]

1. e4 {[%emt 0:02:43]} e6 {[%emt 0:00:25]} 2. d4 {[%emt 0:00:05]} d5 {[%emt 0:00:05]} 3. e5 {[%emt 0:00:04]} c5 {[%emt 0:00:06]} 4. c3 {[%emt 0:00:04]} Nc6 {[%emt 0:00:05]} 5. Nf3 {[%emt 0:00:16]} Bd7 {[%emt 0:00:06]} 6. Be2 {[%emt 0:00:07]} Nge7 {[%emt 0:00:32]} 7. O-O {[%emt 0:00:17]} Nf5 {[%emt 0:01:07]} 8. dxc5 {[%emt 0:00:11]} Bxc5 {[%emt 0:01:43]} 9. b4 {[%emt 0:00:01]} Bb6 {[%emt 0:00:44]} 10. Bd3 {[%emt 0:00:07]} Nh4 {[%emt 0:04:34]} 11. Re1 {[%emt 0:06:17]} f5 {[%emt 0:16:20]} 12. Ng5 {[%emt 0:09:45]} Ng6 13. Qh5 {[%emt 0:24:10]} Nce7 {[%emt 0:15:22]} 14. a4 {[%emt 0:17:58]} h6 {[%emt 0:07:59]} 15. Nh3 {[%emt 0:01:20]} O-O {[%emt 0:00:31]} 16. a5 {[%emt 0:05:50]} Bc7 {[%emt 0:00:19]} 17. f4 {[%emt 0:00:01]} Be8 {[%emt 0:04:36]} 18. Qe2 {[%emt 0:00:23]} Rc8 {[%emt 0:11:13]} 19. Be3 {[%emt 0:05:21]} b6 {[%emt 0:02:25]} 20. a6 {[%emt 0:01:54]} d4 {[%emt 0:05:47]} 21. Bxd4 {[%emt 0:00:31]} Nd5 {[%emt 0:00:29]} 22. Rf1 {[%emt 0:03:22]} Nxb4 {[%emt 0:02:26]} 23. Bc4 {[%emt 0:01:47]} Nd5 {[%emt 0:00:25]} 24. Na3 {[%emt 0:00:38]} Bb8 {[%emt 0:02:32]} 25. Rad1 {[%emt 0:00:56]} Bc6 {[%emt 0:02:35]} 26. g3 {[%emt 0:06:06]} Qe7 {[%emt 0:01:23]} 27. Qb2 {[%emt 0:01:00]} Rfd8 {[%emt 0:01:26]} 28. Nf2 {[%emt 0:01:53]} Ndxf4 {[%emt 0:01:58]} 29. Rde1 {[%emt 0:07:53]} Qg5 {[%emt 0:03:01]} 30. Qc1 {[%emt 0:02:18]} Qh5 {[%emt 0:00:46]} 31. gxf4 {[%emt 0:00:53]} Nh4 {[%emt 0:02:27]} 32. Nh1 {[%emt 0:01:24]} Nf3+ {[%emt 0:01:09]} 33. Kf2 {[%emt 0:00:00]} Qxh2+ {[%emt 0:01:08]} 34. Ke3 {[%emt 0:00:08]} Nxd4 {[%emt 0:03:34]} 35. cxd4 {[%emt 0:00:01]} Qh3+ {[%emt 0:00:25]} 36. Ke2 {[%emt 0:01:06]} Qg2+ {[%emt 0:01:00]} 37. Nf2 {[%emt 0:00:01]} Rxd4 {[%emt 0:01:13]} 38. Qc3 {[%emt 0:00:55]} Rcd8 {[%emt 0:02:46]} 39. Bd3 {[%emt 0:00:32]} Qf3+ {[%emt 0:01:47]} 40. Kd2 {[%emt 0:00:01]} Qxf4+ {[%emt 0:00:21]} 41. Kc2 {[%emt 0:00:08]} Ba4+ {[%emt 0:00:29]} 42. Kb1 {[%emt 0:00:25]} Bxe5 {[%emt 0:01:09]} 43. Ka2 {[%emt 0:02:33]} Rxd3 {[%emt 0:01:38]} 44. Qxe5 {[%emt 0:00:01]} Rd2+ {[%emt 0:00:30]} 45. Ka1 {[%emt 0:00:01]} Qb4 {[%emt 0:00:45]} 46. Re3 Bb3 {[%emt 0:00:24]} 47. Kb1 {[%emt 0:01:14]} Qxa3 {[%emt 0:00:56]} 48. Qxe6+ {[%emt 0:00:01]} Bxe6 {[%emt 0:00:02]} 49. Rxa3 Bc4 {[%emt 0:00:40]} 50. Rc1 {[%emt 0:00:03]} Rxf2 {[%emt 0:00:40]} 51. Rxc4 {[%emt 0:00:00]} Rd1+ {[%emt 0:00:29]} 52. Rc1 {[%emt 0:00:01]} Rxc1+ {[%emt 0:00:19]} 53. Kxc1 {[%emt 0:00:01]} Re2 {[%emt 0:00:16]} 54. Rd3 {[%emt 0:00:45]} Ra2 {[%emt 0:00:09]} 0-1